Cogmind - Beta 17 @@@ ROGUE MODE // 2026.07.23 @ 20:42:35 Player: Cinder Result: Destroyed by G-73 Enforcer with Heavy Laser Performance ------------- Evolutions (7) 3500 Regions Visited (10) 2000 Robots Destroyed (101) 505 Value Destroyed (3938) 3938 Prototype IDs (27) 540 Alien Tech Used (0) 0 Bonus (517) 517 TOTAL SCORE: 11000 Bonus ------- High Alert Combat Kills 77 Follower Combat Kills 140 Aligned with FarCom 300 Cogmind --------- Core Integrity 0/1300 Matter 207/300 Energy 96/100 System Corruption 30% Temperature Cool (9) Movement Core (50) Location -3/Research Parts ------- > --- POWER (2) -------- (None) > --- PROPULSION (7) --- High-density Centrium Wheel > --- UTILITY (8) ------ (None) > --- WEAPON (4) ------- (None) > --- INVENTORY (5) ---- Huge Storage Unit Advanced Weapon Cycler High-powered Tractor Beam Quantum Rifle Peak State ------------ > --- POWER ------------ Light Angular Momentum Engine Light Antimatter Reactor > --- PROPULSION ------- Armored Medium Treads Armored Medium Treads Armored Medium Treads Armored Medium Treads Armored Medium Treads Armored Medium Treads Advanced Medium Treads > --- UTILITY ---------- Advanced Heat Sink Huge Storage Unit Advanced Visual Processing Unit Matter Filter Layered Light Armor Plating Reactive Plating Advanced Hacking Suite Improved System Shield > --- WEAPON ----------- Heavy Assault Rifle Gauss Rifle Gauss Cannon Enhanced Gauss Cannon > --- INVENTORY -------- Particle Reactor Light Particle Reactor Improved Titanium Leg Improved Titanium Leg Flexi-carbon Leg Armored Leg Myomer Leg Myomer Leg Huge Storage Unit Medium Matter Pod High-capacity Matter Pod Advanced Sensor Array Recoil Stabilizer Advanced Weapon Cycler Improved Phase Shifter Improved Shield Generator High-powered Tractor Beam High-powered Tractor Beam Gatling Laser High-powered Shotgun Hardcell Cannon Rocket Launcher Heavy Rocket Launcher [Rating: 112] Favorites ----------- Power Ion Engine Engine Ion Engine Power Core Light Nuclear Core Reactor Light Antimatter Reactor Propulsion Armored Medium Treads Treads Armored Medium Treads Leg Aluminum Leg Wheel High-density Centrium Wheel Flight Unit Impulse Thruster Array Utility Advanced Visual Processing Unit Device High-powered Tractor Beam Storage Huge Storage Unit Processor Advanced Visual Processing Unit Hackware Advanced Hacking Suite Protection Improved Medium Armor Plating Weapon Assault Rifle Energy Gun Gatling Laser Ballistic Gun Assault Rifle Ballistic Cannon Assault Cannon Launcher Rocket Launcher Slashing Weapon Katana Build | -11 -10 -10 -10 -9 -8 -7 -6 -5 -4 -3 ------- Run | Yrd Mat Min Exi Min Mat Fac Fac Fac Fac Res Slots Evolved 14 | . . . . . 4 2 2 2 2 2 Power 1 | . . . . . . . . 1 . . Propulsion 5 | . . . . . 3 1 . 1 . . Utility 6 | . . . . . 1 1 1 . 2 1 Weapon 2 | . . . . . . . 1 . . 1 Parts Attached 107 | 7 4 . 2 1 11 25 20 11 4 22 Power 11 | 1 . . . . . 5 2 1 1 1 Engine 4 | 1 . . . . . . 2 1 . . Core 5 | . . . . . . 5 . . . . Reactor 2 | . . . . . . . . . 1 1 Propulsion 34 | 2 1 . 2 . 4 7 6 8 . 4 Treads 9 | . . . . . . . . 7 . 2 Leg 23 | 2 1 . 2 . 4 7 6 1 . . Wheel 1 | . . . . . . . . . . 1 Hover . | . . . . . . . . . . . Flight 1 | . . . . . . . . . . 1 Utility 34 | 2 3 . . 1 3 10 4 2 2 7 Device 13 | 1 . . . . . 5 2 . 1 4 Storage 5 | 1 2 . . . 1 . . . . 1 Processor 1 | . . . . . 1 . . . . . Hackware 3 | . . . . . . 1 . 1 1 . Protection 12 | . 1 . . 1 1 4 2 1 . 2 Artifact . | . . . . . . . . . . . Weapon 28 | 2 . . . . 4 3 8 . 1 10 Energy Gun 5 | . . . . . . . . . 1 4 Energy Cannon . | . . . . . . . . . . . Ballistic Gun 12 | 2 . . . . 3 2 4 . . 1 Ballistic Cannon 6 | . . . . . . 1 3 . . 2 Launcher 2 | . . . . . 1 . 1 . . . Special Weapon . | . . . . . . . . . . . Impact Weapon . | . . . . . . . . . . . Slashing Weapon 3 | . . . . . . . . . . 3 Piercing Weapon . | . . . . . . . . . . . Special Melee Weapon . | . . . . . . . . . . . Unidentified Prototypes 4 | . . . . . 1 . . . . 3 Parts Lost 39 | . . . . . 2 1 9 2 1 24 Power 3 | . . . . . . . 1 . . 2 Propulsion 7 | . . . . . . 1 2 . . 4 Utility 10 | . . . . . . . 2 1 . 7 Weapon 19 | . . . . . 2 . 4 1 1 11 Highest Loss Streak 14 | . . . . . 1 1 9 1 1 14 To Critical Strikes 1 | . . . . . . . . . . 1 Average Backups 20 | 1 8 18 18 20 21 24 24 23 23 18 Power 1 | . 1 1 1 1 1 2 1 1 1 1 Propulsion 4 | . 2 3 3 4 3 3 4 5 6 4 Utility 10 | . 4 12 12 12 12 12 11 12 12 8 Weapon 4 | . 1 2 2 2 3 5 5 4 4 3 Tool/Special . | . . . . . . . . . . . Unused Backups 44 | . 2 . . . 6 16 1 1 . 18 Power 11 | . 1 . . . 4 2 1 . . 3 Propulsion 6 | . . . . . . . . . . 6 Utility 18 | . . . . . 2 8 . 1 . 7 Weapon 9 | . 1 . . . . 6 . . . 2 Tool/Special . | . . . . . . . . . . . Average Slot Usage (%) 96 | . 99 100 100 100 99 99 99 99 88 75 Engine 7 | . 14 14 14 14 9 1 5 11 7 2 Core 1 | . . . . . . 5 . . . . Treads 8 | . . . . . . . . 31 31 21 Leg 27 | . 27 28 28 28 44 45 39 8 . . Device 6 | . 7 . . . . 6 13 5 5 6 Storage 7 | . 14 14 14 14 9 7 6 5 5 2 Processor 4 | . . . . . 8 7 6 5 5 2 Hackware 1 | . . . . . . . . 4 8 6 Protection 7 | . 7 14 14 14 9 6 6 5 5 6 Ballistic Gun 14 | . 27 28 28 28 17 10 18 . 2 6 Ballistic Cannon 4 | . . . . . . 4 1 17 7 4 Peak Build Rating 112 | 9 9 8 27 27 41 58 73 89 94 112 Average Rating 53 | 4 8 8 12 26 35 52 68 86 87 83 On Entrance 38 | . 9 8 8 27 27 41 58 73 79 94 Avg Prop Armor Cover (%) 13 | . . . . . . . . 2 . 14 Naked Turns 9 | . . . . . . . . . . 9 Heaviest Build 145 | 15 92 52 52 52 92 105 120 129 125 145 Greatest Support 192 | 20 20 20 60 60 95 113 130 189 162 192 Greatest Overweight (x) 4 | 1 4 2 2 . . . 1 . . 1 Average Overweight (x) . | . . 2 1 . . . . . . . Largest Inventory Capacity 25 | 8 25 20 20 20 25 25 25 25 25 25 Average Capacity 22 | 6 13 20 20 20 22 25 25 25 25 19 Most Carried 25 | 2 18 18 20 20 25 25 25 25 25 25 Average Carried 20 | 1 8 18 18 19 21 24 24 23 23 18 Final Capacity 25 | 8 20 20 20 20 25 25 25 25 25 5 Final Carried 25 | 2 18 18 20 20 25 25 19 25 25 4 Class Distribution -------------------- 30% | Mutant 26% | Scavenger-Mutant 19% | Skirmisher 11% | Scavenger-Skirmisher 7% | Hacker-Tank 3% | Hacker-Skirmisher Dominant Class ---------------- Mutant | -10/Materials Mutant | -10/Mines Mutant | -10/Exiles Mutant | -9/Mines Mutant | -8/Materials Scavenger-Mutant | -7/Factory Scavenger-Skirmisher | -6/Factory Skirmisher | -5/Factory Hacker-Skirmisher | -4/Factory Hacker-Tank | -3/Research Resources | -11 -10 -10 -10 -9 -8 -7 -6 -5 -4 -3 ----------- Run | Yrd Mat Min Exi Min Mat Fac Fac Fac Fac Res Matter Collected 4364 | 255 325 . 125 12 272 1146 685 481 446 617 Remotely 1732 | . . . . . . 716 166 332 446 72 Salvage Created 3279 | 24 357 . . 33 239 903 650 197 443 433 Parts 139 | 1 22 . . 4 17 50 19 12 5 9 Haulers Intercepted 3 | . 1 . . . . 1 . . 1 . Recyclers Shooed 4 | . . . . . 1 1 . . 2 . Parts Field Recycled . | . . . . . . . . . . . Retrieved Matter . | . . . . . . . . . . . Parts Self-Destructed . | . . . . . . . . . . . Prevented . | . . . . . . . . . . . Parts Restored . | . . . . . . . . . . . Kills | -11 -10 -10 -10 -9 -8 -7 -6 -5 -4 -3 ------- Run | Yrd Mat Min Exi Min Mat Fac Fac Fac Fac Res Combat Hostiles Destroyed 78 | . 9 . . 2 6 27 15 9 2 8 Melee 2 | . . . . . . . . 2 . . Guns 40 | . 9 . . 2 5 11 9 . 1 3 Cannons 29 | . . . . . . 16 1 7 . 5 AOE 7 | . . . . . 1 . 5 . 1 . Classes Destroyed 13 | 1 4 . . . 4 3 . . . 1 Worker 9 | . . . . . 1 1 4 3 . . Builder 3 | . . . . . . 1 . 1 . 1 Tunneler 1 | 1 . . . . . . . . . . Hauler 3 | . 1 . . . . 1 . . 1 . Recycler 4 | . . . . . . 1 1 . 2 . Operator 1 | . . . . . 1 . . . . . Watcher 2 | . 1 . . . 1 . . . . . Swarmer 24 | . 3 . . 2 2 13 4 . . . Grunt 25 | . 6 . . . 2 5 8 2 2 . Sentry 6 | . . . . . 1 2 . 2 . 1 Specialist 2 | . . . . . . . . . . 2 Hunter 10 | . . . . . 1 2 2 3 . 2 Programmer 11 | . . . . . . 5 1 2 . 3 Best Kill Streak 13 | 1 3 . . 2 3 5 13 3 3 4 Combat Bots Only 9 | . 3 . . 2 3 4 9 2 2 2 Max Kills in Single Turn 2 | 1 1 . . 2 2 2 2 1 1 1 Gunslinging 1 | . . . . 1 . . . . . . Exploded 2 | . . . . . 1 . 2 . 1 . Melee 1 | . . . . . . . . 1 . . Uniques/NPCs Destroyed . | . . . . . . . . . . . Combat | -11 -10 -10 -10 -9 -8 -7 -6 -5 -4 -3 -------- Run | Yrd Mat Min Exi Min Mat Fac Fac Fac Fac Res Hostile Shots Fired 999 | . 38 . . 3 54 217 164 137 6 380 Missed 302 | . 13 . . 1 13 68 47 24 . 136 Hits 697 | . 25 . . 2 41 149 117 113 6 244 Melee 7 | . . . . . . . . . . 7 Projectile 690 | . 25 . . 2 41 149 117 113 6 237 Critical Strikes 36 | . . . . . . 6 6 4 . 20 Part Disruptions 2 | . . . . . . . . . . 2 Damage Taken 11934 | . 340 . . 16 448 1717 2006 1987 204 5216 Core 1967 | . 67 . . . 57 173 240 113 17 1300 Absorbed by Shields 113 | . . . . . . 85 . . . 28 Ignored by Resistances 180 | . . . . . . . . . . 180 Regen/Repaired (Parts) 79 | . . . . . . 39 . 40 . . Core Remaining (%) 84 | 100 . . . 73 89 75 71 88 98 . Volleys Fired 269 | 1 31 1 . 2 28 90 32 31 19 34 Largest 4 | 2 2 2 . 2 2 2 3 3 3 4 Hottest 214 | 40 40 40 . 40 53 62 112 121 161 214 Shots Fired 613 | 2 62 2 . 4 52 179 89 78 23 122 Gun 382 | 2 62 2 . 4 49 111 75 . 20 57 Cannon 219 | . . . . . . 68 6 78 3 64 Launcher 12 | . . . . . 3 . 8 . . 1 Special . | . . . . . . . . . . . Kinetic 579 | 2 62 2 . 4 49 179 81 78 4 118 Thermal 22 | . . . . . . . . . 19 3 Explosive 12 | . . . . . 3 . 8 . . 1 Electromagnetic . | . . . . . . . . . . . Robot Hit Streak 19 | 1 8 1 . 3 10 11 12 8 19 14 Robot Miss Streak 11 | 1 3 1 . 2 2 5 11 6 2 3 Penetration Max 1 | . . . . . . . . . . 1 Secondary Targets 2 | . . . . 1 . . 1 . . . Max Gunslinging Chain 1 | . . . . 1 . . 1 . . . Shots Hit Robots 421 | 1 39 1 . 2 38 122 64 55 22 77 Core Hits 280 | 1 20 . . 2 19 73 69 45 19 32 Critical Kills 1 | . . . . . . . . . 1 . Critical Parts Destroyed 1 | . . . . . . . . . . 1 Critical Strikes 16 | . . . . . . 4 . 2 1 9 Destroy 3 | . . . . . . 1 . . 1 1 Blast 13 | . . . . . . 3 . 2 . 8 Melee Attacks 2 | . . . . . . . . . . 2 Impact . | . . . . . . . . . . . Slashing 2 | . . . . . . . . . . 2 Piercing . | . . . . . . . . . . . Sneak Attacks . | . . . . . . . . . . . Combat Hostiles . | . . . . . . . . . . . Follow-up Attacks . | . . . . . . . . . . . Damage Inflicted 10613 | 13 514 10 . 29 771 2529 2177 1572 617 2381 Guns 4651 | 13 497 10 . 29 350 1441 933 . 463 915 Cannons 3671 | . . . . . . 1026 78 1258 55 1254 Explosions 1505 | . . . . . 421 . 868 . 74 142 Melee 32 | . . . . . . . . . . 32 Ramming 754 | . 17 . . . . 62 298 314 25 38 Kinetic 7781 | 13 497 10 . 29 350 2467 1011 1258 76 2070 Thermal 705 | . . . . . . . 164 . 442 99 Explosive 1341 | . . . . . 421 . 704 . 74 142 Electromagnetic . | . . . . . . . . . . . Impact . | . . . . . . . . . . . Slashing 32 | . . . . . . . . . . 32 Piercing . | . . . . . . . . . . . Highest Corruption 30 | . . . . . . 2 . 3 . 30 Average Corruption 5 | . . . . . . 1 . 2 . 15 Corruption Purged . | . . . . . . . . . . . Corruption Blocked . | . . . . . . . . . . . Effects 34 | . . . . . . 9 . 6 . 19 Message Errors 8 | . . . . . . 3 . 1 . 4 Matter Fused 10 | . . . . . . 2 . 2 . 6 Heat Flow Errors 4 | . . . . . . 3 . . . 1 Energy Discharges 3 | . . . . . . . . 1 . 2 Parts Rejected 2 | . . . . . . . . 1 . 1 Data Loss (minor) 3 | . . . . . . . . 1 . 2 Data Loss (major) 1 | . . . . . . . . . . 1 Weapon Failures 3 | . . . . . . 1 . . . 2 Overload Shots . | . . . . . . . . . . . Overflow Damage 284 | . . . . . 27 28 150 18 45 16 Projectiles 28 | . . . . . . 28 . . . . Explosions 142 | . . . . . 27 . 54 . 45 16 Melee 114 | . . . . . . . 96 18 . . Knockbacks 44 | . . . . . . 9 3 22 1 9 Impact 4 | . . . . . . . 2 1 1 . Kinetic 38 | . . . . . . 7 1 21 . 9 Secondary 2 | . . . . . . 2 . . . . Self-Inflicted Damage 170 | . . . . . . . 30 . 87 53 Shots 4 | . . . . . . . 2 . 1 1 Rammed 30 | . . . . . . . . 23 2 5 Targets Rammed 49 | . 2 . . . . 3 8 29 2 5 Kicked 13 | . 2 . . . . 3 8 . . . Crushed 6 | . . . . . . . . 6 . . Highest Temperature 352 | . 2 . . . 6 255 63 352 181 272 Average Temperature 76 | . 2 . . . 4 57 29 115 64 88 Received Heat Transfer 1767 | . 168 . . . 117 267 729 243 51 192 Effects 1 | . . . . . . . . 1 . . Energy Bleed 1 | . . . . . . . . 1 . . Siege Activations . | . . . . . . . . . . . Martial Activations . | . . . . . . . . . . . Shielding Activations . | . . . . . . . . . . . Robots Disrupted . | . . . . . . . . . . . Combat Hostiles . | . . . . . . . . . . . Robots Corrupted 3 | . . . . . . 1 2 . . . Combat Hostiles . | . . . . . . . . . . . Parts Fried 6 | . . . . . . 1 5 . . . Impact Corruptions 7 | . . . . . . 1 4 2 . . Robots Melted . | . . . . . . . . . . . Combat Hostiles . | . . . . . . . . . . . Parts Melted 10 | . . . . . . . . . 9 1 Heat Transferred 1362 | . . . . . . . 200 . 1000 162 Parts Sabotaged . | . . . . . . . . . . . Parts Stolen . | . . . . . . . . . . . Parts Stripped . | . . . . . . . . . . . Power Chain Reactions . | . . . . . . . . . . . Alert | -11 -10 -10 -10 -9 -8 -7 -6 -5 -4 -3 ------- Run | Yrd Mat Min Exi Min Mat Fac Fac Fac Fac Res Maximum Alert Level 2 | . . . . . . 2 1 1 . 1 Low Security (%) 70 | 100 100 100 . 100 100 50 86 5 100 85 Level 1 21 | . . . . . . 15 13 94 . 14 Level 2 8 | . . . . . . 33 . . . . Level 3 . | . . . . . . . . . . . Level 4 . | . . . . . . . . . . . Level 5 . | . . . . . . . . . . . High Security . | . . . . . . . . . . . Max Security . | . . . . . . . . . . . Peak Influence 607 | 5 114 . . 50 134 607 337 347 139 296 Initial 224 | . . . . . 3 35 224 156 104 36 Average 134 | . 33 . . 30 54 242 97 271 83 62 Influence Increases 3716 | 5 253 . . 50 339 1080 629 532 147 681 Destroy 0b10 Robot/C 1640 | . 180 . . 40 200 540 300 180 40 160 Destroy 0b10 Robot/NC 115 | 5 10 . . . 15 20 25 20 15 5 Destroy Leader 440 | . 44 . . 10 62 142 50 70 12 50 Allied During Kill 10 | . . . . . 10 . . . . . Successful Hack 153 | . 18 . . . 16 38 24 14 12 31 Disable Machine 180 | . . . . . . 15 105 30 30 . Anti-Garrison Action 400 | . . . . . . 200 . 200 . . Destroy Structure 178 | . 1 . . . 21 5 65 18 38 30 Partial Spotted 15 | . . . . . . . 15 . . . Lose Combat Pursuer 585 | . . . . . 15 120 45 . . 405 Influence Decreases 3450 | 5 253 . . 40 271 699 769 637 290 486 Entered New Map 593 | . . . . . 7 43 235 163 110 35 Time Decay 2291 | 5 253 . . 40 224 496 444 434 170 225 Lost Part 376 | . . . . . 20 10 90 20 10 226 Lost Ally 40 | . . . . . 20 . . 20 . . Purge Threat 150 | . . . . . . 150 . . . . Squads Dispatched 40 | . 1 . . . 2 9 8 7 1 12 Investigation 13 | . . . . . 2 4 . 5 . 2 Extermination 8 | . . . . . . 3 2 1 . 2 Reinforcement 11 | . 1 . . . . 1 3 1 . 5 Assault . | . . . . . . . . . . . Garrison 8 | . . . . . . 1 3 . 1 3 Intercept . | . . . . . . . . . . . Searches Triggered . | . . . . . . . . . . . Construction Impeded 2 | . . . . . . . . 1 . 1 Haulers Reinforced 1 | . . . . . . . 1 . . . Active Scanning Responses . | . . . . . . . . . . . Cargo Convoy Interrupts . | . . . . . . . . . . . Stealth | -11 -10 -10 -10 -9 -8 -7 -6 -5 -4 -3 --------- Run | Yrd Mat Min Exi Min Mat Fac Fac Fac Fac Res Distress Signals 9 | . 3 . . . 2 1 1 1 . 1 Communications Jammed . | . . . . . . . . . . . Distress Signals . | . . . . . . . . . . . Times Spotted 167 | . 16 . . 1 18 41 25 19 3 44 Peak Tracking Total 16 | . 4 . . 1 7 4 9 5 1 16 Tactical Retreats 18 | . . . . . 1 6 2 . . 9 Traps | -11 -10 -10 -10 -9 -8 -7 -6 -5 -4 -3 ------- Run | Yrd Mat Min Exi Min Mat Fac Fac Fac Fac Res Traps Triggered 6 | . 1 . . . . . . 3 1 1 Indirectly . | . . . . . . . . . . . Trap Hack Attempts . | . . . . . . . . . . . Triggered . | . . . . . . . . . . . Disarmed . | . . . . . . . . . . . Reprogrammed . | . . . . . . . . . . . Reused . | . . . . . . . . . . . Traps Extracted . | . . . . . . . . . . . Installed . | . . . . . . . . . . . Triggered . | . . . . . . . . . . . Machines | -11 -10 -10 -10 -9 -8 -7 -6 -5 -4 -3 ---------- Run | Yrd Mat Min Exi Min Mat Fac Fac Fac Fac Res Machines Disabled 12 | . . . . . . 1 7 2 2 . Max in Single Turn 7 | . . . . . . 1 7 1 2 . Garrison Access 3 | . . . . . . 1 . 1 1 . Machines Repaired . | . . . . . . . . . . . Machines Dismantled . | . . . . . . . . . . . Machines Sabotaged . | . . . . . . . . . . . Overloaded Fab Kills . | . . . . . . . . . . . Hacking | -11 -10 -10 -10 -9 -8 -7 -6 -5 -4 -3 --------- Run | Yrd Mat Min Exi Min Mat Fac Fac Fac Fac Res Machines Accessed 44 | . 3 . 2 . 6 11 7 4 3 8 Terminals 23 | . 3 . . . 5 7 1 1 . 6 Fabricators 6 | . . . . . . 1 2 1 . 2 Repair Stations 3 | . . . . . . 1 1 1 . . Recycling Units 6 | . . . . . . 1 3 . 2 . Scanalyzers 1 | . . . . . 1 . . . . . Garrison Access 3 | . . . . . . 1 . 1 1 . Total Hacks 98 | . 8 . 2 . 17 21 18 7 5 20 Successful 39 | . 3 . 2 . 8 9 3 3 5 6 Failed 59 | . 5 . . . 9 12 15 4 . 14 Catastrophic 14 | . . . . . 1 4 4 1 . 4 Database Lockouts . | . . . . . . . . . . . Manual 79 | . 8 . 1 . 10 19 16 7 2 16 Terminals 57 | . 8 . . . 13 14 2 2 . 18 Fabricators 13 | . . . . . . 2 6 3 . 2 Repair Stations 3 | . . . . . . 1 1 1 . . Recycling Units 15 | . . . . . . 2 9 . 4 . Scanalyzers 4 | . . . . . 4 . . . . . Garrison Access 4 | . . . . . . 2 . 1 1 . Terminal Hacks 6 | . 1 . 2 . 1 1 . . . 1 Record 1 | . . . 1 . . . . . . . Level Access Points 1 | . . . . . . . . . . 1 Branch Access Points 1 | . . . . . 1 . . . . . Unreport Threat 1 | . . . . . . 1 . . . . Registered Components 1 | . 1 . . . . . . . . . Proto ID Catalog 1 | . . . 1 . . . . . . . Fabricator Hacks . | . . . . . . . . . . . Repair Station Hacks . | . . . . . . . . . . . Recycling Unit Hacks 2 | . . . . . . . . . 2 . Process 1 | . . . . . . . . . 1 . Retrieve Matter 1 | . . . . . . . . . 1 . Scanalyzer 3 | . . . . . 3 . . . . . Insert Component 1 | . . . . . 1 . . . . . Analyze 1 | . . . . . 1 . . . . . Retrieve Study 1 | . . . . . 1 . . . . . Garrison Access Hacks 1 | . . . . . . . . . 1 . Seal Access 1 | . . . . . . . . . 1 . Unauthorized Hacks 27 | . 2 . . . 4 8 3 3 2 5 Terminals 13 | . 2 . . . 4 4 . . . 3 Assimilate 2 | . . . . . 2 . . . . . Botnet 10 | . 2 . . . 2 4 . . . 2 Disrupt 1 | . . . . . . . . . . 1 Fabricators 4 | . . . . . . . 1 1 . 2 Fabnet 4 | . . . . . . . 1 1 . 2 Repair Stations 2 | . . . . . . 1 . 1 . . Patch 2 | . . . . . . 1 . 1 . . Recycling Units 6 | . . . . . . 2 2 . 2 . Reject 4 | . . . . . . 1 2 . 1 . Mask 2 | . . . . . . 1 . . 1 . Scanalyzers . | . . . . . . . . . . . Garrison Access 2 | . . . . . . 1 . 1 . . Jam 2 | . . . . . . 1 . 1 . . Data Cores Recovered 1 | . . . . . 1 . . . . . Used 1 | . . . . . 1 . . . . . Hacking Detections 34 | . 3 . . . 6 9 7 2 1 6 Full Trace Events 7 | . . . . . 2 2 . 1 . 2 Feedback Events 1 | . . . . . . . . . . 1 Corruption 1 | . . . . . . . . . . 1 Feedback Blocked . | . . . . . . . . . . . Robot Schematics Acquired . | . . . . . . . . . . . Robots Built . | . . . . . . . . . . . Authchips . | . . . . . . . . . . . Time . | . . . . . . . . . . . Total Robot Build Rating . | . . . . . . . . . . . Part Schematics Acquired 1 | . . . . . 1 . . . . . Parts Built . | . . . . . . . . . . . Authchips . | . . . . . . . . . . . Time . | . . . . . . . . . . . Total Part Build Rating . | . . . . . . . . . . . Part Studies Acquired 1 | . . . . . 1 . . . . . Parts Repaired . | . . . . . . . . . . . Time . | . . . . . . . . . . . Parts Recycled . | . . . . . . . . . . . Recycled Matter . | . . . . . . . . . . . Retrieved Matter . | . . . . . . . . . . . Retrieved Components . | . . . . . . . . . . . Parts Scanalyzed 1 | . . . . . 1 . . . . . Part Schematics Acquired 1 | . . . . . 1 . . . . . Parts Damaged . | . . . . . . . . . . . Bothacking | -11 -10 -10 -10 -9 -8 -7 -6 -5 -4 -3 ------------ Run | Yrd Mat Min Exi Min Mat Fac Fac Fac Fac Res Used RIF Installer . | . . . . . . . . . . . Robots Hacked 1 | . . . . . . . . 1 . . Non-combat . | . . . . . . . . . . . Combat 1 | . . . . . . . . 1 . . Robot Hacks Applied . | . . . . . . . . . . . Relay Couplers Released . | . . . . . . . . . . . Fabnet Peak Effective % 4 | . . . . . . . . 3 4 1 Autooverrided 1 | . . . . . . . . 1 . . Robots Rewired . | . . . . . . . . . . . Allies Hacked . | . . . . . . . . . . . Hacks Repelled . | . . . . . . . . . . . Allies | -11 -10 -10 -10 -9 -8 -7 -6 -5 -4 -3 -------- Run | Yrd Mat Min Exi Min Mat Fac Fac Fac Fac Res Total Allies 2 | . . . . 1 . . . 1 . . Largest Group 1 | . . . . 1 1 . . . . . Highest-Rated Group 31 | . . . . 31 31 . . . . . Highest-Rated Ally 31 | . . . . 31 31 . . . . . Total Orders . | . . . . . . . . . . . Ally Attacks 16 | . . . . . 14 . . 2 . . Total Damage 287 | . . . . . 268 . . 19 . . Kills 4 | . . . . . 4 . . . . . Allies Corrupted . | . . . . . . . . . . . Allies Melted . | . . . . . . . . . . . Intel | -11 -10 -10 -10 -9 -8 -7 -6 -5 -4 -3 ------- Run | Yrd Mat Min Exi Min Mat Fac Fac Fac Fac Res Active Infowar (turns) 6129 | 4 431 . . . 672 1786 1137 1072 359 668 Optics 5694 | . . . . . 672 1786 1137 1072 359 668 Terrain 435 | 4 431 . . . . . . . . . Robot Analysis Total . | . . . . . . . . . . . Derelict Logs Recovered 2 | . . 1 . 1 . . . . . . Drone Launches . | . . . . . . . . . . . Drone Recoveries . | . . . . . . . . . . . Exploration | -11 -10 -10 -10 -9 -8 -7 -6 -5 -4 -3 ------------- Run | Yrd Mat Min Exi Min Mat Fac Fac Fac Fac Res Turns Passed 7765 | 65 870 406 396 98 681 1786 1137 1072 359 895 Spaces Moved 4710 | 49 432 156 225 91 481 1304 613 532 176 651 Core 52 | 14 . . . . . . . . . 38 Treads 822 | . . . . . . . . 352 176 294 Legs 3517 | 35 432 156 225 91 481 1304 613 180 . . Wheels 51 | . . . . . . . . . . 51 Hover . | . . . . . . . . . . . Flight 268 | . . . . . . . . . . 268 Fastest Speed 45 | 50 120 260 90 90 99 102 107 111 170 45 Average Speed 125 | 102 163 260 175 90 102 102 109 150 170 106 Slowest Speed 400 | 120 400 260 260 90 108 107 180 170 170 170 Overloaded Moves . | . . . . . . . . . . . Propulsion Burnouts . | . . . . . . . . . . . Robots Hopped 17 | . . . . . . . . . . 17 Potential Cave-ins . | . . . . . . . . . . . Cave-ins Triggered . | . . . . . . . . . . . Exploration Rate (%) 30 | 3 75 28 61 38 41 29 21 14 5 23 Regions Visited 10 Branch Regions 3 Pre-discovered Areas 2 | . . . 1 1 . . . . . . Known Exits Taken 1 | . . . . . 1 . . . . . Unknown Exits Taken 9 | 1 1 1 1 1 . 1 1 1 1 . Scrap Searched 1 | . . . . 1 . . . . . . Spaces Dug 2 | . . . . . . . . 1 . 1 Terrain Destroyed 145 | . . . . . 34 5 69 8 18 11 Melee 1 | . . . . . . . . . . 1 Projectile 18 | . . . . . . 5 . 8 . 5 AOE 126 | . . . . . 34 . 69 . 18 5 Terrain Rammed . | . . . . . . . . . . . Walls Destroyed . | . . . . . . . . . . . Machines Disabled . | . . . . . . . . . . . Actions | -11 -10 -10 -10 -9 -8 -7 -6 -5 -4 -3 --------- Run | Yrd Mat Min Exi Min Mat Fac Fac Fac Fac Res Total 6032 | 58 536 156 226 103 625 1623 1018 726 208 753 Wait 664 | . 36 . . 6 69 114 320 94 3 22 Move 4671 | 48 431 155 224 90 480 1303 613 531 175 621 Hop 13 | . . . . . . . . . . 13 Pick Up 123 | 2 21 . . 2 21 34 12 18 2 11 Fast Attach 32 | 7 4 . . . 2 1 . 2 3 13 Attach 41 | . . . . . 5 3 11 9 2 11 Detach 5 | . 1 . . . . . . 1 . 3 Swap 60 | . 3 . 2 1 8 29 12 1 1 3 Drop 100 | . 7 . . 2 12 46 11 10 1 11 Fire 269 | 1 31 1 . 2 28 90 32 31 19 34 Melee 2 | . . . . . . . . . . 2 Ram 3 | . . . . . . . . . . 3 Kick 12 | . 2 . . . . 3 7 . . . Crush 33 | . . . . . . . . 29 2 2 Escape Stasis 4 | . . . . . . . . . . 4 Rewire . | . . . . . . . . . . . Trap . | . . . . . . . . . . . Miscellaneous . | . . . . . . . . . . . Route ------- -11/Scrapyard -10/Materials (discovered 4 exits: [*Mat x2] / [*Min] / [*Sub]) -10/Mines -10/Exiles -9/Mines -8/Materials (discovered 2 exits: *Fac x2) -7/Factory -6/Factory -5/Factory -4/Factory -3/Research (discovered 3 exits: Res x3) History --------- Turn | Location | Event 9 | -11/Scrapyard | Discovered new exit (range 15) 66 | -11/Scrapyard | Entered Materials 165 | -10/Materials | Discovered new exit (range 6) 176 | -10/Materials | Discovered new exit (range 15) 184 | -10/Materials | Discovered new exit (range 15) 311 | -10/Materials | Build established: Mutant 508 | -10/Materials | Discovered new exit (range 16) 936 | -10/Materials | Entered Mines 981 | -10/Mines | Learned 2 Materials zone layouts 1329 | -10/Mines | Deemed a non-threat by the Exiles lab entrance 1332 | -10/Mines | Discovered new exit (range 5) 1342 | -10/Mines | Entered Exiles 1405 | -10/Exiles | Met 8R-AWN 1449 | -10/Exiles | Met EX-HEX 1519 | -10/Exiles | Met EX-BIN 1556 | -10/Exiles | Aligned with FarCom system 1558 | -10/Exiles | Given EX-Vault access code 1618 | -10/Exiles | Opened EX-Vault 1634 | -10/Exiles | Found Potential Leg 1637 | -10/Exiles | Found Potential Leg 1656 | -10/Exiles | Warned to stay clear of 0b10 Research branches 1669 | -10/Exiles | Exiles lab attacked by MAIN.C 1686 | -10/Exiles | Learned location of Zion (-6) 1731 | -10/Exiles | Discovered new exit (range 10) 1738 | -10/Exiles | Left Exiles lab with Potential Leg 1738 | -10/Exiles | Entered Mines 1744 | -9/Mines | Escorted by a lone wolf Derelict 1772 | -9/Mines | Learned location of Storage (-7) 1774 | -9/Mines | Learned location of 1 exit from Materials 1817 | -9/Mines | Discovered new exit (range 9) 1822 | -9/Mines | Received a Rocket Launcher from a helpful Derelict 1836 | -9/Mines | Entered Materials 1836 | -8/Materials | Accompanied by 1 ally 1836 | -8/Materials | Evolved 4 slots: Propulsion x3, Utility x1 1837 | -8/Materials | Identified exit to Factory 2513 | -8/Materials | Discovered exit to Factory (range 4) 2517 | -8/Materials | Entered Factory 2517 | -7/Factory | Evolved 2 slots: Propulsion x1, Utility x1 2540 | -7/Factory | Build established: Scavenger-Mutant 3630 | -7/Factory | Garrison activated, responded to threat 4171 | -7/Factory | Discovered new exit (range 19) 4303 | -7/Factory | Entered another Factory area 4303 | -6/Factory | Evolved 2 slots: Utility x1, Weapon x1 4600 | -6/Factory | Build established: Scavenger-Skirmisher 5027 | -6/Factory | Garrison activated, responded to threat 5253 | -6/Factory | Build established: Skirmisher 5369 | -6/Factory | Destroyed 9 combat bots 5395 | -6/Factory | Lost 9 parts (1p2n2u4w) 5399 | -6/Factory | Discovered new exit (range 17) 5440 | -6/Factory | Entered another Factory area 5440 | -5/Factory | Evolved 2 slots: Power x1, Propulsion x1 6498 | -5/Factory | Discovered new exit (range 4) 6512 | -5/Factory | Entered another Factory area 6512 | -4/Factory | Evolved 2 slots: Utility x2 6663 | -4/Factory | Garrison activated, responded to threat 6798 | -4/Factory | Discovered new exit (range 7) 6871 | -4/Factory | Entered Research 6871 | -3/Research | Evolved 2 slots: Utility x1, Weapon x1 7143 | -3/Research | Identified exit to Research 7171 | -3/Research | Build established: Hacker-Tank 7482 | -3/Research | Garrison activated, responded to threat 7493 | -3/Research | System corruption reached 10% 7539 | -3/Research | Released all parts (9) 7569 | -3/Research | Lost 14 parts (2p2n5u5w) 7610 | -3/Research | Core integrity fell below 50% 7709 | -3/Research | Core integrity fell below 20% 7723 | -3/Research | Lost 3 parts (1n2w) 7758 | -3/Research | System corruption reached 30% 7766 | -3/Research | Destroyed by G-73 Enforcer with Heavy Laser Last Messages --------------- 07711_ Acquired Quantum Rifle. 07713_ Slug penetrates Wall. 07713_ Acquired Phase Shifter. 07716_ Penetrated by Slug. 07726_ System corrupted: Matter fused (-9). 07727_ Phase Shifter destroyed. 07743_ Katana destroyed. 07753_ System corrupted: Particle Reactor rejected. 07759_ Penetrated by Slug. 07759_ P-80 Master destroyed. 07759_ Dispersion Rifle destroyed. 07761_ Slug penetrates Wall. 07761_ Slammed into H-77 Assassin. 07763_ Penetrated by Slug. 07763_ Dispersion Rifle destroyed. 07763_ Slammed into H-77 Assassin. 07764_ Slug penetrates Wall. 07764_ Penetrated by Slug. 07764_ Adv. Medium Treads destroyed. 07766_ Slug penetrates Wall. Map ----- +----------------------------------------------------+ | ?????????????????????????????????????????????????? | | ???